bitfinex/quotes_ETHUSD_20250129
["timestamp","ask_amount","ask_price","bid_price","bid_amount"]
[1738137570874,3.16696,3157.6,3157.2,0.03501314]
[1738137575197,3.16669,3157.9,3157.4,0.8182]
[1738137575369,3.16662,3158.0,3157.5,0.8182]
[1738137575562,3.33179117,3157.9,3157.5,0.8182]
[1738137575893,0.16513117,3157.9,3157.6,0.0348286]
[1738137576065,3.16642,3158.2,3157.7,3.9872]
[1738137576268,3.16634,3158.3,3157.8,3.16675]
[1738137576473,3.16634,3158.3,3157.9,0.8003]
[1738137577059,3.16646,3158.1,3158.0,0.03482265]
[1738137577463,3.16646,3158.1,3157.9,0.8003]
[1738137577663,3.16646,3158.1,3158.0,0.03482265]
[1738137577966,3.16646,3158.1,3157.9,0.8003]
[1738137578164,3.16646,3158.1,3158.0,0.03482265]
[1738137578363,3.16646,3158.1,3157.9,0.8003]
[1738137578595,3.16646,3158.1,3158.0,0.03482265]
[1738137578991,3.16646,3158.1,3157.9,0.8003]
[1738137579268,3.16607,3158.5,3158.0,0.03448938]
[1738137579576,3.16607,3158.5,3157.9,1.19723]
[1738137579577,3.16607,3158.5,3158.1,3.9462]
[1738137579778,3.16607,3158.5,3158.2,0.03448938]
[1738137582983,3.16616,3158.4,3158.2,0.03448938]
[1738137590828,3.16607,3158.5,3158.2,0.03448938]
[1738137590990,3.16616,3158.4,3158.2,0.03448938]
[1738137592604,3.16626,3158.3,3158.2,0.03448938]
[1738137594087,3.16626,3158.3,3157.9,0.7557]
[1738137594321,3.1664,3158.2,3157.9,0.7557]
[1738137594526,3.1664,3158.2,3158.0,0.03249815]
[1738137595026,3.1664,3158.2,3158.1,0.03249815]
[1738137595394,3.1664,3158.2,3157.9,0.7557]
[1738137595593,3.1664,3158.2,3158.0,0.03249815]
[1738137595798,3.1664,3158.2,3157.9,0.7557]
[1738137595998,3.1664,3158.2,3158.0,0.03249815]
[1738137596226,3.1664,3158.2,3158.1,0.03141488]
[1738137596729,3.1664,3158.2,3157.7,6.12304815]
[1738137597105,3.1664,3158.2,3157.8,0.03142678]
[1738137597834,3.16592,3158.7,3158.1,3.16645]
[1738137598128,3.16592,3158.7,3157.8,0.96356127]
[1738137598129,3.16613,3158.5,3158.2,3.168]
[1738137598438,3.16613,3158.5,3158.3,0.03142678]
[1738137598824,3.16613,3158.5,3158.0,6.33454]
[1738137599005,3.16613,3158.5,3158.4,0.03142678]
[1738137599205,3.16613,3158.5,3158.1,0.8174]
[1738137599835,3.16613,3158.5,3158.2,0.03142678]
[1738137600835,3.16626,3158.3,3158.2,0.03142678]
[1738137605935,3.33116514,3158.3,3158.2,0.03142678]
[1738137611549,0.16490514,3158.3,3158.2,0.85162678]
[1738137611883,0.64252217,3158.7,3158.4,0.8202]
[1738137612013,3.16604,3158.6,3158.4,0.8202]
[1738137612216,3.16626,3158.3,3158.2,0.03142678]
[1738137612531,3.92526,3158.3,3158.2,0.03142678]
[1738137614836,3.16626,3158.3,3158.2,0.03142678]
[1738137615568,0.8162,3158.7,3157.6,3.169]
[1738137615774,3.16656,3158.0,3157.6,0.7705]
[1738137615944,3.16656,3158.0,3157.7,3.19974437]
[1738137616353,3.16636,3158.2,3157.7,3.19974437]
[1738137616752,3.16617,3158.4,3157.8,3.94615]
[1738137616952,3.16617,3158.4,3157.8,0.7794]
[1738137617154,3.16626,3158.3,3157.8,0.7794]
[1738137617574,3.16626,3158.3,3157.9,0.03074437]
[1738137618680,3.16638,3158.2,3157.9,0.03074437]
[1738137619256,3.16604,3158.6,3158.0,3.91732]
[1738137619467,3.16604,3158.6,3158.1,3.168]
[1738137619864,3.16604,3158.6,3158.2,0.03074437]
[1738137620176,3.16606,3158.5,3158.2,0.03074437]
[1738137620344,3.16618,3158.4,3158.2,0.03074437]
[1738137620546,3.166,3158.6,3158.2,0.03074437]
[1738137620742,3.1659,3158.7,3158.2,0.03074437]
[1738137620942,3.16607,3158.5,3158.2,0.03074437]
[1738137621176,3.16607,3158.5,3158.0,0.7508]
[1738137621480,3.16604,3158.6,3158.3,0.03074437]
[1738137621680,3.16646,3158.1,3157.7,0.7906]
[1738137621884,3.16634,3158.3,3157.7,3.95746]
[1738137622106,3.1661,3158.5,3158.1,0.7906]
[1738137622426,3.16591,3158.7,3158.1,0.7906]
[1738137622723,6.33099,3159.1,3158.3,0.7571]
[1738137622866,3.16562,3159.0,3158.4,4.63552621]
[1738137623505,0.64195323,3159.3,3158.4,1.46940621]
[1738137623799,3.16602,3158.6,3158.4,0.7571]
[1738137623982,3.16601,3158.6,3158.4,0.7571]
[1738137624595,3.16614,3158.5,3158.2,0.827]
[1738137624779,3.16621,3158.4,3158.2,0.827]
[1738137624975,3.16626,3158.3,3158.2,0.827]
[1738137625204,3.16621,3158.4,3158.2,0.827]
[1738137626181,3.16582,3158.8,3158.2,0.827]
[1738137626391,3.98844,3158.9,3158.2,0.827]
[1738137626392,3.98844,3158.9,3158.2,1.543155]
[1738137626593,3.16599,3158.6,3158.2,0.827]
[1738137626769,3.16592,3158.7,3158.2,0.827]
[1738137626970,3.16609,3158.5,3158.2,0.827]
[1738137627301,3.16592,3158.7,3158.2,0.827]
[1738137627503,3.16592,3158.7,3158.3,0.03035794]
[1738137627807,3.16598,3158.6,3158.3,0.03035794]
[1738137628376,3.16606,3158.5,3158.3,0.03035794]
[1738137628766,3.16616,3158.4,3158.3,0.03035794]
[1738137629371,3.16603,3158.6,3158.3,0.03035794]
[1738137629584,3.16609,3158.5,3158.3,0.03035794]
[1738137629785,3.95506,3158.4,3158.3,0.03035794]
[1738137629983,3.95506,3158.4,3157.9,0.7768]
[1738137630206,3.16645,3158.2,3157.7,3.9458]
[1738137630522,3.16659,3158.0,3157.7,3.9458]
[1738137631513,3.16645,3158.2,3157.7,3.9458]
[1738137631820,3.16645,3158.2,3157.7,7.11263]
[1738137632188,3.16645,3158.2,3157.7,3.9458]
[1738137632423,3.16655,3158.1,3157.7,0.7768]
[1738137634394,3.16655,3158.1,3157.7,3.9458]
[1738137634725,3.16659,3158.0,3157.7,3.9458]
[1738137635152,3.16676,3157.8,3157.7,3.169]
[1738137635486,3.16671,3157.9,3157.7,3.169]
[1738137635985,3.16676,3157.8,3157.7,3.169]
[1738137636421,3.16698,3157.6,3157.3,0.7993]
[1738137636720,6.3336,3157.8,3157.3,0.7993]
[1738137636917,7.1639,3157.8,3157.3,0.7993]
[1738137637178,3.99706,3157.8,3157.3,0.7993]
[1738137637371,3.16706,3157.5,3157.2,3.169]
[1738137637755,3.16722,3157.4,3157.0,0.7527]
[1738137638476,3.16702,3157.6,3157.0,0.7527]
[1738137639843,3.16702,3157.6,3157.0,3.92025]
[1738137640749,0.8303,3157.8,3157.2,3.16728]
[1738137641049,0.7704,3158.1,3157.4,3.16713]
[1738137641257,3.93692,3158.1,3157.5,3.16705]
[1738137641459,3.16652,3158.1,3157.5,3.16705]
[1738137641668,3.16652,3158.1,3157.6,0.7936]
[1738137642361,3.16652,3158.1,3157.7,0.03093467]
[1738137642559,3.9427758,3158.1,3157.7,0.03093467]
[1738137643555,0.8102,3158.3,3157.7,3.19778467]
[1738137643757,3.97647,3158.3,3157.7,3.19778467]
[1738137643958,3.97647,3158.3,3157.8,3.169]
[1738137644149,3.97647,3158.3,3157.8,3.19906907]
[1738137644342,3.16639,3158.2,3157.8,3.19906907]
[1738137645872,0.397659,3158.1,3157.8,3.19906907]
[1738137646067,3.16639,3158.2,3157.8,3.19906907]
[1738137647384,3.16646,3158.1,3157.8,3.19906907]
[1738137647586,0.8102,3158.3,3157.8,3.19906907]
[1738137647587,3.16663,3158.0,3157.8,0.03006907]
[1738137647788,6.33328,3158.0,3157.6,0.7936]
[1738137647973,3.16663,3158.0,3157.9,0.03006907]
[1738137648170,3.16663,3158.0,3157.4,3.169]
[1738137648171,3.483293,3158.0,3157.4,3.169]
[1738137648347,3.16677,3157.8,3157.3,3.97561]
[1738137648552,3.16677,3157.8,3157.4,3.169]
[1738137651087,3.16694,3157.7,3157.4,3.169]
[1738137651867,3.16677,3157.8,3157.4,3.169]
[1738137652070,3.167,3157.6,3157.1,0.802]
[1738137652255,3.167,3157.6,3156.9,0.802]
[1738137652256,3.16727,3157.3,3156.9,0.802]
[1738137654459,3.16742,3157.2,3156.9,0.802]
[1738137654676,3.16727,3157.3,3156.9,0.802]
[1738137654968,3.16727,3157.3,3156.8,3.169]
[1738137655881,3.16727,3157.3,3156.8,6.33676]
[1738137656069,0.792,3157.4,3156.8,6.33676]
[1738137656276,3.167,3157.6,3157.1,3.16745]
[1738137656869,3.167,3157.6,3156.9,3.93586]
[1738137657069,3.16709,3157.5,3156.9,3.93586]
[1738137657276,3.16709,3157.5,3157.0,3.169]
[1738137657669,3.16709,3157.5,3157.1,0.02814817]
[1738137658770,3.800499,3157.5,3157.1,0.02814817]
[1738137660393,3.16687,3157.7,3157.1,3.19552817]
[1738137660774,3.16698,3157.6,3157.1,3.19552817]
[1738137660977,3.16687,3157.7,3157.2,6.33635]
[1738137661373,3.16687,3157.7,3157.3,0.02814817]
[1738137663416,3.16698,3157.6,3157.3,0.02814817]
[1738137663730,3.16709,3157.5,3157.3,0.02814817]
[1738137663933,3.16716,3157.4,3157.3,0.02814817]
[1738137664429,3.16709,3157.5,3157.3,0.02814817]
[1738137666921,3.8927476,3157.6,3157.3,0.02814817]
[1738137667074,3.16697,3157.6,3157.3,0.02814817]
[1738137667395,3.16689,3157.7,3157.3,0.02814817]
[1738137668481,3.16698,3157.6,3157.3,0.02814817]
[1738137668801,3.16689,3157.7,3157.3,0.02814817]
[1738137669112,3.16709,3157.5,3157.3,0.02814817]
[1738137669677,3.16689,3157.7,3157.3,0.02814817]
[1738137669971,3.5759716,3157.7,3157.3,0.02814817]
[1738137670416,0.92392604,3157.8,3157.3,0.02814817]
[1738137670599,3.33128604,3157.8,3157.3,0.02814817]
[1738137671674,3.16686,3157.7,3157.3,0.02814817]
[1738137672091,0.16452604,3157.8,3157.3,0.02814817]
[1738137672406,0.16452604,3157.8,3157.3,3.19536817]
[1738137672407,3.33128604,3157.8,3157.3,3.19536817]
[1738137673515,3.33128604,3157.8,3157.3,0.02814817]
[1738137674308,0.89421564,3157.8,3157.3,0.02814817]
[1738137674485,3.16716,3157.4,3157.3,0.02814817]
[1738137674901,3.16716,3157.4,3157.0,0.811]
[1738137675102,3.33169486,3157.4,3157.0,0.811]
[1738137678414,3.33169486,3157.4,3156.9,3.169]
[1738137678583,3.16738,3157.2,3156.9,3.169]
[1738137679198,3.16747,3157.1,3156.7,0.7825]
[1738137679617,7.11724,3157.2,3156.7,0.7825]
[1738137680319,3.16747,3157.1,3156.7,0.7825]
[1738137680696,3.16793,3156.7,3156.3,0.8132]
[1738137680897,3.16798,3156.6,3156.4,3.17]
[1738137683817,0.8222,3156.7,3156.4,3.17]
[1738137684028,3.16783,3156.8,3156.4,3.17]
[1738137684208,3.16749,3157.1,3156.5,0.7564]
[1738137684407,0.399929,3157.0,3156.5,0.7564]
[1738137684609,3.16766,3156.9,3156.5,0.7564]
[1738137684917,3.16766,3156.9,3156.4,3.16807]
[1738137685624,0.8068,3156.8,3156.3,3.9415]
[1738137686191,3.97459,3156.8,3156.3,7.10974]
[1738137686421,3.94431,3157.1,3156.5,3.16803]
[1738137686624,3.0,3157.2,3156.8,0.8132]
[1738137686842,3.16726,3157.3,3156.8,0.8132]
[1738137687101,3.16726,3157.3,3156.8,3.9832]
[1738137687256,3.57811949,3157.3,3156.8,3.17]
[1738137687411,0.7768,3157.0,3156.4,3.98134]
[1738137687740,0.7768,3157.0,3156.5,3.17]
[1738137688317,3.94444,3157.0,3156.5,3.17]
[1738137688518,3.16749,3157.1,3156.5,6.33805]
[1738137688732,3.16749,3157.1,3156.5,3.63863474]
[1738137688930,3.16749,3157.1,3156.5,0.47058474]
[1738137689410,3.16769,3156.9,3156.4,0.8132]
[1738137690040,3.94429,3156.9,3156.4,0.8132]
[1738137690344,3.16782,3156.8,3156.5,0.02780842]
[1738137690750,3.16787,3156.7,3156.5,0.02780842]
[1738137691051,3.16787,3156.7,3156.6,0.02828982]
[1738137691238,3.16787,3156.7,3156.3,3.17]
[1738137691442,3.16787,3156.7,3156.4,0.02828982]
[1738137692838,3.16787,3156.7,3156.3,3.17]
[1738137693040,3.16799,3156.6,3156.3,3.17]
[1738137693223,3.16809,3156.5,3156.3,3.17]
[1738137697854,3.16787,3156.7,3156.3,3.17]
[1738137698567,3.1677,3156.9,3156.4,0.7633]
[1738137698970,6.50001988,3156.9,3156.4,0.7633]
[1738137699360,3.33226988,3156.9,3156.4,0.7633]
[1738137701933,0.16456988,3156.9,3156.5,3.168]
[1738137702139,0.16456988,3156.9,3156.8,3.94386]
[1738137702338,0.7979,3157.6,3157.0,3.16755]
[1738137702566,0.16459097,3157.5,3157.0,3.16755]
[1738137702878,3.16717,3157.4,3156.9,3.169]
[1738137703172,3.33173097,3157.5,3156.9,6.33665]
[1738137703349,0.16459097,3157.5,3156.9,3.169]
[1738137703549,3.16757,3157.0,3156.8,0.7761]
[1738137703871,3.16757,3157.0,3156.5,7.10235]
[1738137705281,3.16757,3157.0,3156.5,3.9343]
[1738137706458,7.15751,3157.2,3156.5,3.9343]
[1738137706657,3.99007,3157.2,3156.6,3.16793]
[1738137706851,3.99007,3157.2,3156.5,0.7643]
[1738137706852,3.16757,3157.0,3156.5,0.7643]
[1738137707052,3.16757,3157.0,3156.5,3.9343]
[1738137711360,3.16767,3156.9,3156.5,3.9343]
[1738137711565,3.16767,3156.9,3156.5,3.17]
[1738137713493,6.16754,3157.1,3156.6,0.7795]
[1738137713702,7.25226114,3157.1,3156.6,0.7795]
[1738137713888,3.16756,3157.0,3156.6,0.7795]
[1738137717428,7.25218114,3157.1,3156.6,3.94745]
[1738137717631,7.25218114,3157.1,3156.6,0.7795]
[1738137719659,3.16757,3157.0,3156.6,0.7795]
[1738137722541,4.08472114,3157.1,3156.6,0.7795]
[1738137722711,3.16756,3157.0,3156.6,0.7795]
[1738137725344,7.44612425,3157.0,3156.6,0.7795]
[1738137725716,4.27848425,3157.0,3156.6,0.7795]
[1738137726753,3.16773,3156.9,3156.6,0.7795]
[1738137727054,1.11092425,3157.0,3156.6,0.7795]
[1738137727225,0.7764,3157.7,3157.0,0.7867]
[1738137727425,1.4710452,3158.0,3157.1,3.93076]
[1738137727749,2.44460266,3158.3,3157.4,0.7633]
[1738137727750,0.61927768,3158.1,3157.4,0.7633]
[1738137727952,3.16672,3157.9,3157.4,0.7633]
[1738137728127,3.16677,3157.8,3157.4,0.7633]
[1738137728928,3.16658,3158.0,3157.4,0.7633]
[1738137729118,3.64465882,3158.0,3157.4,3.93041]
[1738137729451,3.64465882,3158.0,3157.5,3.16705]
[1738137729452,3.16658,3158.0,3157.5,3.16705]
[1738137729752,3.16658,3158.0,3157.4,7.09939]
[1738137729955,3.16658,3158.0,3157.5,3.16704]
[1738137733331,3.16658,3158.0,3157.6,0.55]
[1738137733762,3.33091051,3158.2,3157.6,0.55]
[1738137733928,3.33091051,3158.2,3157.7,0.8038]
[1738137734559,3.16647,3158.1,3157.7,0.8038]
[1738137735130,3.16647,3158.1,3157.8,0.55]
[1738137735832,3.33091051,3158.2,3157.8,0.55]
[1738137736423,3.16648,3158.1,3157.8,0.55]
[1738137737069,3.33091051,3158.2,3157.8,0.55]
[1738137737253,0.16453051,3158.2,3157.8,0.55]
[1738137737445,0.16453051,3158.2,3158.0,0.55]
[1738137737640,3.33090051,3158.2,3158.0,0.55]
[1738137738738,0.16453051,3158.2,3158.0,0.55]
[1738137742574,3.16646,3158.1,3158.0,0.55]
[1738137743244,0.16453051,3158.2,3158.0,0.55]
[1738137744467,3.16609,3158.5,3158.0,3.718]
[1738137744642,3.33066763,3158.5,3158.0,3.718]
[1738137745346,3.33066763,3158.5,3158.0,4.481477]
[1738137745932,0.16457763,3158.5,3158.2,0.55]
[1738137746137,0.64201255,3158.8,3158.4,0.55]
[1738137746362,3.16597,3158.6,3158.4,0.55]
[1738137746566,3.33037595,3158.8,3158.4,0.55]
[1738137746746,0.16461595,3158.8,3158.4,0.55]
[1738137746945,0.16461595,3158.8,3158.4,4.003003]
[1738137747138,0.16461595,3158.8,3158.4,3.55]
[1738137747334,0.16461595,3158.8,3158.4,0.55]
[1738137747335,6.49626595,3158.8,3158.4,0.55]
[1738137747775,3.33042595,3158.8,3158.4,0.55]
[1738137749375,0.16461595,3158.8,3158.4,0.55]
[1738137749578,0.16461595,3158.8,3158.6,3.55]
[1738137749777,3.16538,3159.2,3158.8,0.7854]
[1738137750078,3.16548,3159.1,3158.9,0.55]
[1738137750377,3.16555,3159.0,3158.9,0.55]
[1738137751080,3.16551,3159.1,3158.9,0.55]
[1738137751967,3.1653,3159.3,3158.9,0.55]
[1738137752368,3.3298418,3159.3,3158.9,0.55]
[1738137752771,3.16536,3159.2,3158.9,0.55]
[1738137753947,3.3298418,3159.3,3158.9,3.55]
[1738137753948,0.1645418,3159.3,3158.9,3.55]
[1738137754150,2.44460266,3160.1,3159.4,0.781]
[1738137754151,7.14582,3160.1,3159.4,0.781]
[1738137754381,3.16409,3160.5,3159.8,0.7559]
[1738137754581,3.16409,3160.5,3159.6,3.0]
[1738137754582,3.16368,3160.9,3159.9,0.58164314]
[1738137754880,0.164678,3160.4,3160.1,3.55]
[1738137755079,0.64411676,3160.8,3160.3,3.55]
[1738137755284,3.16348,3161.1,3160.5,0.55]
[1738137755446,3.93616,3161.3,3160.5,0.55]
[1738137755447,0.16465528,3160.7,3160.5,0.55]
[1738137756255,3.16355,3161.1,3160.5,0.55]
[1738137756480,3.16355,3161.1,3160.5,1.613614]
[1738137757284,3.16355,3161.1,3160.5,4.613614]
[1738137757650,3.16357,3161.0,3160.5,3.55]
[1738137757989,3.16355,3161.1,3160.5,3.55]
[1738137758151,3.16371,3160.9,3160.5,3.55]
[1738137758584,3.16371,3160.9,3160.5,0.55]
[1738137759680,3.16378,3160.8,3160.5,0.55]
[1738137759984,3.16395,3160.6,3160.3,3.166]
[1738137760180,3.16395,3160.6,3160.4,0.55]
[1738137760349,3.16378,3160.8,3160.4,0.55]
[1738137760764,3.16341,3161.2,3160.4,0.9216]
[1738137760969,3.16835,3161.3,3160.7,0.55]
[1738137761163,3.16835,3161.3,3161.2,0.55]
[1738137761164,0.005,3161.3,3161.2,0.55]
[1738137761381,0.005,3161.3,3161.2,3.74662853]
[1738137761685,0.005,3161.3,3161.2,4.81287738]
[1738137761856,0.005,3161.3,3161.2,4.78124885]
[1738137762258,0.005,3161.3,3161.1,3.165]
[1738137763076,3.16335,3161.2,3161.1,3.715]
[1738137763880,3.16335,3161.2,3160.8,3.0]
[1738137764062,3.16363,3161.0,3160.8,3.0]
[1738137764388,0.005,3161.3,3160.9,0.55]
[1738137764594,3.16335,3161.2,3160.9,0.55]
[1738137764794,3.16335,3161.2,3160.8,0.55]
[1738137765092,3.16347,3161.1,3160.8,0.55]
[1738137766214,3.16335,3161.2,3160.8,0.55]
[1738137767573,0.005,3161.3,3160.8,1.33325577]
[1738137767781,0.005,3161.3,3160.8,4.46537]
[1738137768060,0.005,3161.3,3160.8,4.49700249]
[1738137769467,0.005,3161.3,3161.0,0.55]
[1738137769750,0.005,3161.3,3161.2,0.55]
[1738137770516,0.005,3161.3,3161.2,1.7044631]
[1738137774572,0.005,3161.3,3161.2,4.7044631]
[1738137774948,0.005,3161.3,3161.2,4.3298]
[1738137776783,3.16825,3161.3,3161.2,3.55]
[1738137777997,0.005,3161.3,3161.2,7.51105]
[1738137779077,0.005,3161.3,3161.2,4.3477]
[1738137779275,0.005,3161.3,3161.2,4.37932945]
[1738137779587,0.005,3161.3,3161.2,5.4501084]
[1738137780281,0.005,3161.3,3161.2,8.6134584]
[1738137780484,0.005,3161.3,3161.2,5.41847895]
[1738137781360,0.005,3161.3,3161.2,3.55]
[1738137781606,0.005,3161.3,3161.2,3.58162953]
[1738137781906,0.005,3161.3,3161.2,3.55]
[1738137782112,0.005,3161.3,3161.2,3.58162945]
[1738137782406,0.005,3161.3,3161.2,6.74497945]
[1738137782554,0.005,3161.3,3161.2,8.09811395]
[1738137783073,0.005,3161.3,3161.2,6.71335]
[1738137783695,0.005,3161.3,3161.2,3.55]
[1738137785309,0.005,3161.3,3161.2,6.71335]
[1738137785595,0.005,3161.3,3161.2,7.52855]
[1738137788105,0.005,3161.3,3161.2,4.3652]
[1738137788660,0.005,3161.3,3161.2,8.62954629]
[1738137788860,0.005,3161.3,3161.2,8.597917]
[1738137790415,0.005,3161.3,3161.2,7.782717]
[1738137790722,0.005,3161.3,3161.2,6.71335]
[1738137791507,0.005,3161.3,3161.2,3.55]
[1738137792310,0.005,3161.3,3161.2,0.55]
[1738137792791,3.16825,3161.3,3161.2,0.55]
[1738137792998,3.16825,3161.3,3161.1,3.165]
[1738137792999,3.16335,3161.2,3161.1,3.165]
[1738137793931,3.16362,3161.0,3160.6,6.166]
[1738137794272,3.16362,3161.0,3160.7,0.55]
[1738137794627,0.7684,3160.9,3160.7,0.55]
[1738137794905,3.93175,3161.2,3160.7,0.55]
[1738137795277,3.16346,3161.1,3160.7,0.55]
[1738137796409,3.16828,3161.3,3160.9,0.55]
[1738137798220,0.005,3161.3,3160.9,0.55]
[1738137798428,0.005,3161.3,3161.1,0.55]
[1738137798781,0.005,3161.3,3161.2,0.55]
[1738137799313,3.93065,3161.3,3161.2,0.55]
[1738137799518,4.640537,3161.3,3161.2,0.55]
[1738137801825,3.93065,3161.3,3161.2,0.55]
[1738137803022,3.16825,3161.3,3161.2,0.55]
[1738137809106,3.93105,3161.3,3161.2,0.55]
[1738137809334,3.16382,3160.8,3160.2,3.40434]
[1738137809539,3.16382,3160.8,3160.4,0.55]
[1738137809752,3.16382,3160.8,3160.4,4.337764]
[1738137810641,3.1636,3161.0,3160.4,4.337764]
[1738137810809,3.1636,3161.0,3160.4,7.501914]
[1738137811142,3.16339,3161.2,3160.6,0.55]
[1738137811307,3.16826,3161.3,3160.8,0.55]
[1738137811512,3.16826,3161.3,3160.8,1.6125397]
[1738137812039,0.005,3161.3,3160.9,0.03163407]
[1738137812244,0.005,3161.3,3161.1,0.55]
[1738137819127,3.1635,3161.1,3160.8,3.0]
[1738137819645,3.1635,3161.1,3160.7,3.406]
[1738137820015,3.1635,3161.1,3160.8,0.55]
[1738137820237,3.16357,3161.0,3160.8,0.55]
[1738137820438,0.756,3161.2,3160.8,0.55]
[1738137820655,3.91942,3161.2,3160.8,0.55]
[1738137821143,3.16353,3161.1,3160.8,0.55]
[1738137825053,0.005,3161.3,3161.0,0.55]
[1738137825232,0.005,3161.3,3161.2,0.55]
[1738137826527,0.005,3161.3,3161.2,0.58163007]
[1738137826732,0.005,3161.3,3161.2,4.48525]
[1738137827040,0.005,3161.3,3161.2,4.51687951]
[1738137827256,0.005,3161.3,3161.2,5.28506746]
[1738137828859,0.005,3161.3,3161.2,8.28506746]
[1738137829047,0.005,3161.3,3161.2,10.69804061]
[1738137829461,0.6621047,3162.3,3162.2,4.53125]
[1738137829661,0.6621047,3162.3,3162.2,7.96686815]
[1738137829963,0.6621047,3162.3,3162.2,6.13029308]
[1738137830160,0.6621047,3162.3,3162.2,7.93525]
[1738137830461,0.6621047,3162.3,3162.2,3.954]
[1738137830972,0.6621047,3162.3,3162.2,3.714]
[1738137831426,0.6621047,3162.3,3162.2,3.74561997]
[1738137831626,0.6621047,3162.3,3162.2,3.714]
[1738137831849,0.6621047,3162.3,3162.2,4.74951733]
[1738137832329,0.6621047,3162.3,3162.2,4.717897]
[1738137832561,0.6621047,3162.3,3162.2,4.74951697]
[1738137833059,0.6621047,3162.3,3162.2,4.717897]
[1738137833264,0.6621047,3162.3,3162.2,4.74951693]
[1738137833422,0.6621047,3162.3,3162.2,4.717897]
[1738137833626,0.6621047,3162.3,3162.2,3.714]
[1738137841146,0.6621047,3162.3,3162.2,3.74561976]
[1738137841344,0.6621047,3162.3,3162.2,7.70026976]
[1738137841555,0.6621047,3162.3,3162.2,7.66865]
[1738137843673,0.6621047,3162.3,3162.2,4.5063]
[1738137844072,0.6621047,3162.3,3162.2,8.46713407]
[1738137844271,0.6621047,3162.3,3162.2,8.435515]
[1738137845672,0.6621047,3162.3,3162.2,4.480865]
[1738137845870,0.6621047,3162.3,3162.2,3.714]
[1738137846275,0.6621047,3162.3,3162.2,3.164]
[1738137846574,0.6621047,3162.3,3161.5,0.8211]
[1738137846739,3.16287,3161.7,3161.3,0.239]
[1738137846938,3.16287,3161.7,3161.4,3.165]
[1738137847139,0.8271,3161.8,3161.5,0.55]
[1738137847413,3.16286,3161.7,3161.4,3.165]
[1738137847678,3.16286,3161.7,3161.5,0.55]
[1738137848074,3.16286,3161.7,3161.4,3.165]
[1738137849082,3.16305,3161.5,3161.4,3.165]
[1738137849278,3.16305,3161.5,3161.4,3.715]
[1738137849922,3.16305,3161.5,3161.4,0.55]
[1738137850751,3.16295,3161.6,3161.1,0.58163054]
[1738137851497,3.16286,3161.7,3161.1,1.19437071]
[1738137852752,0.8271,3161.8,3161.3,0.55]
[1738137853068,4.6099247,3162.3,3161.8,0.55]
[1738137853257,1.4476047,3162.3,3161.8,0.58162437]
[1738137853455,1.4476047,3162.3,3162.0,0.55]
[1738137854499,0.6621047,3162.3,3162.0,0.55]
[1738137855057,0.6621047,3162.3,3162.0,0.58162207]
[1738137855305,0.6621047,3162.3,3162.0,1.35396628]
[1738137855509,0.6621047,3162.3,3162.0,1.32234421]
[1738137855714,0.6621047,3162.3,3162.0,0.58162203]
[1738137857329,0.6621047,3162.3,3162.0,0.55]
[1738137857535,3.8244347,3162.3,3162.0,0.55]
[1738137857834,3.16245,3162.1,3162.0,0.55]
[1738137858014,3.16245,3162.1,3161.6,6.165]
[1738137858343,3.16245,3162.1,3161.3,15.07322]
[1738137858344,3.16285,3161.7,3161.3,9.149]
[1738137859237,3.16285,3161.7,3161.4,0.55]
[1738137859444,0.7596,3162.0,3161.4,4.5434206]
[1738137859593,3.92215,3162.0,3161.4,4.5434206]
[1738137859791,3.92215,3162.0,3161.4,9.61455193]
[1738137859996,3.92215,3162.0,3161.4,9.58292133]
[1738137860188,3.92215,3162.0,3161.5,0.0316274]
[1738137860383,3.92215,3162.0,3161.5,0.03162738]
[1738137860703,3.92215,3162.0,3161.4,9.58292133]
[1738137860885,0.7596,3162.0,3161.6,3.71294]
[1738137861089,0.6621047,3162.3,3162.0,1.3696]
[1738137861333,0.6621047,3162.3,3162.0,4.56522208]
[1738137861696,0.6621047,3162.3,3162.0,4.5336]
[1738137862335,0.6621047,3162.3,3162.0,7.69614]
[1738137862568,0.6621047,3162.3,3162.0,5.10938538]
[1738137862873,0.6621047,3162.3,3162.0,5.14100742]
[1738137863880,0.6621047,3162.3,3162.0,5.10938538]
[1738137864176,0.6621047,3162.3,3162.1,3.1624]
[1738137864385,0.6621047,3162.3,3162.2,3.74397144]
[1738137864529,0.6621047,3162.3,3162.2,4.85893968]
[1738137864877,0.6621047,3162.3,3162.2,4.89055951]
[1738137865027,0.6621047,3162.3,3162.2,4.85893968]
[1738137865743,0.6621047,3162.3,3162.2,4.89055953]
[1738137866280,0.6621047,3162.3,3162.2,8.70565953]
[1738137866443,0.6621047,3162.3,3162.2,8.67403968]
[1738137867829,0.6621047,3162.3,3162.2,3.55]
[1738137868078,0.6621047,3162.3,3162.0,6.90224538]
[1738137868238,0.6621047,3162.3,3162.2,3.71235]
[1738137868796,0.16466391,3163.2,3162.2,1.3251]
[1738137868945,0.005,3163.4,3163.1,0.55]
[1738137869145,0.005,3163.4,3163.1,6.90605095]
[1738137869340,0.005,3163.4,3163.2,0.03161052]
[1738137869559,0.005,3163.4,3163.1,3.19460903]
[1738137869773,0.005,3163.4,3163.2,0.55]
[1738137870576,3.16616,3163.4,3163.2,0.55]
[1738137871507,3.16616,3163.4,3162.6,3.7963]
[1738137871708,3.96122,3163.2,3162.7,0.03161375]